[Event "African Games Rapid Open 2019"]
[Site "Casablanca"]
[Date "2019.08.27"]
[Round "6.20"]
[White "Beukes, Dante M"]
[Black "Koualet-Bebondi, Vianney Archeveq"]
[Result "1-0"]
[ECO "C41"]
[WhiteElo "2130"]
[BlackElo "1679"]
[Annotator "NA"]
[PlyCount "103"]
[EventDate "2019.08.26"]
[EventType "team-tourn"]
[EventCountry "MAR"]
[SourceTitle "playchess.com"]
[Source "ChessBase"]
[SourceQuality "1"]
[TimeControl "900+10"]

1. e4 {[%emt 0:00:00]} e5 {[%emt 0:00:00]} 2. Nf3 {[%emt 0:00:03]} d6 {[%emt 0:00:04]} 3. d4 {[%emt 0:00:01]} exd4 {[%emt 0:00:12]} 4. Qxd4 {[%emt 0:00:43]} Bd7 {[%emt 0:00:19]} 5. Be3 {[%emt 0:00:16]} Nc6 {[%emt 0:00:07]} 6. Qd2 {[%emt 0:00:04]} Nf6 {[%emt 0:02:03]} 7. Nc3 {[%emt 0:00:05]} Be7 {[%emt 0:00:20]} 8. O-O-O {[%emt 0:01:20]} O-O {[%emt 0:00:16]} 9. Kb1 {[%emt 0:00:02]} a6 {[%emt 0:00:06]} 10. Nd4 {[%emt 0:00:39]} b5 {[%emt 0:00:15]} 11. f3 {[%emt 0:00:59]} Ne5 {[%emt 0:00:15]} 12. Nd5 {[%emt 0:03:16]} c5 {[%emt 0:00:19]} 13. Nf5 {[%emt 0:01:51]} Nxd5 {[%emt 0:00:23]} 14. Qxd5 {[%emt 0:00:16]} Bxf5 {[%emt 0:00:24]} 15. exf5 {[%emt 0:00:02]} Qc8 {[%emt 0:00:50]} 16. g4 {[%emt 0:00:53]} Qc6 {[%emt 0:00:18]} 17. Be2 {[%emt 0:00:28]} Qxd5 {[%emt 0:00:22]} 18. Rxd5 {[%emt 0:00:03]} Nc6 {[%emt 0:00:28]} 19. f4 {[%emt 0:01:15]} Rab8 {[%emt 0:00:56]} 20. Bf3 {[%emt 0:00:29]} b4 {[%emt 0:00:20]} 21. g5 {[%emt 0:00:52]} f6 {[%emt 0:00:14]} 22. g6 {[%emt 0:00:19]} h6 {[%emt 0:00:09]} 23. Bf2 {[%emt 0:01:29]} a5 24. Rd2 {[%emt 0:00:21]} Na7 {[%emt 0:00:16]} 25. Re1 {[%emt 0:00:06]} Nc8 {[%emt 0:00:38]} 26. Bd5+ {[%emt 0:00:35]} Kh8 {[%emt 0:00:09]} 27. Be6 {[%emt 0:00:24]} Rb7 {[%emt 0:00:07]} 28. Rde2 {[%emt 0:00:04]} Nb6 {[%emt 0:00:23]} 29. Bf7 {[%emt 0:00:18]} Nc8 {[%emt 0:00:47]} 30. Kc1 {[%emt 0:00:53]} Rc7 {[%emt 0:00:08]} 31. Kd2 {[%emt 0:00:15]} a4 {[%emt 0:00:31]} 32. a3 {[%emt 0:00:09]} b3 {[%emt 0:00:54]} 33. cxb3 {[%emt 0:00:02]} axb3 {[%emt 0:00:01]} 34. Kc3 {[%emt 0:00:18]} c4 {[%emt 0:00:12]} 35. Be6 {[%emt 0:00:20]} d5 {[%emt 0:02:07]} 36. Bxc8 {[%emt 0:00:07]} Bd6 {[%emt 0:01:02]} 37. Be6 {[%emt 0:00:30]} Bxf4 {[%emt 0:00:08]} 38. Bxd5 {[%emt 0:00:19]} Bxh2 {[%emt 0:00:44]} 39. Bb6 {[%emt 0:00:06]} Be5+ {[%emt 0:00:13]} 40. Rxe5 {[%emt 0:00:02]} fxe5 {[%emt 0:00:21]} 41. Bxc7 {[%emt 0:00:01]} Rxf5 {[%emt 0:00:11]} 42. Rxe5 {[%emt 0:00:09]} Rxe5 {[%emt 0:00:12]} 43. Bxe5 {[%emt 0:00:05]} h5 44. Kxc4 {[%emt 0:00:08]} h4 {[%emt 0:00:05]} 45. Kxb3 {[%emt 0:00:07]} h3 {[%emt 0:00:01]} 46. Bd6 {[%emt 0:00:06]} h2 {[%emt 0:00:04]} 47. a4 {[%emt 0:00:00]} h1=Q {[%emt 0:00:00]} 48. Bxh1 {[%emt 0:00:00]} Kg8 {[%emt 0:00:00]} 49. a5 {[%emt 0:00:00]} Kh8 {[%emt 0:00:02]} 50. a6 {[%emt 0:00:00]} Kg8 {[%emt 0:00:05]} 51. a7 {[%emt 0:00:00]} Kh8 {[%emt 0:00:04]} 52. a8=R# {[%emt 0:00:00]} 1-0

[Event "African Games Rapid Open 2019"]
[Site "Casablanca"]
[Date "2019.08.27"]
[Round "6.21"]
[White "Yahi, Mohamed Salem"]
[Black "Espirito Santo, Waldyr"]
[Result "1-0"]
[ECO "A69"]
[WhiteElo "1928"]
[BlackElo "1923"]
[Annotator "NA"]
[PlyCount "42"]
[EventDate "2019.08.26"]
[EventType "team-tourn"]
[EventCountry "MAR"]
[SourceTitle "playchess.com"]
[Source "ChessBase"]
[SourceQuality "1"]
[TimeControl "900+10"]

1. d4 {[%emt 0:00:00]} Nf6 {[%emt 0:00:00]} 2. c4 {[%emt 0:00:00]} g6 {[%emt 0:00:00]} 3. Nc3 {[%emt 0:00:08]} Bg7 {[%emt 0:00:00]} 4. e4 {[%emt 0:00:07]} d6 {[%emt 0:00:00]} 5. f4 {[%emt 0:01:32]} O-O {[%emt 0:00:23]} 6. Nf3 {[%emt 0:00:36]} c5 {[%emt 0:00:08]} 7. d5 {[%emt 0:01:04]} e6 {[%emt 0:00:26]} 8. Be2 {[%emt 0:01:10]} exd5 {[%emt 0:00:07]} 9. cxd5 {[%emt 0:00:16]} Re8 {[%emt 0:00:04]} 10. Qc2 {[%emt 0:00:33]} Na6 {[%emt 0:00:37]} 11. a3 {[%emt 0:00:06]} Qe7 {[%emt 0:00:35]} 12. Bd3 {[%emt 0:01:59]} c4 {[%emt 0:00:13]} 13. Bxc4 {[%emt 0:01:19]} Nxe4 {[%emt 0:00:27]} 14. O-O {[%emt 0:00:45]} Nxc3 {[%emt 0:00:13]} 15. bxc3 {[%emt 0:00:27]} Bf5 {[%emt 0:00:19]} 16. Qd2 {[%emt 0:04:07]} Qc7 {[%emt 0:01:09]} 17. Bxa6 {[%emt 0:00:15]} bxa6 {[%emt 0:00:11]} 18. Bb2 {[%emt 0:00:07]} Rab8 {[%emt 0:00:26]} 19. Rac1 {[%emt 0:00:01]} Qb6+ {[%emt 0:00:09]} 20. Nd4 {[%emt 0:00:21]} Bxd4+ {[%emt 0:00:10]} 21. cxd4 {[%emt 0:00:09]} Qxb2 1-0

[Event "African Games Rapid Open 2019"]
[Site "Casablanca"]
[Date "2019.08.27"]
[Round "6.22"]
[White "Hassan, Abderrahmane"]
[Black "Kourakoumba, Florent"]
[Result "1-0"]
[ECO "A40"]
[WhiteElo "1786"]
[BlackElo "1677"]
[Annotator "NA"]
[PlyCount "111"]
[EventDate "2019.08.26"]
[EventType "team-tourn"]
[EventCountry "MAR"]
[SourceTitle "playchess.com"]
[Source "ChessBase"]
[SourceQuality "1"]
[TimeControl "900+10"]

1. d4 {[%emt 0:00:00]} e6 {[%emt 0:00:00]} 2. Bf4 {[%emt 0:00:04]} d6 {[%emt 0:00:02]} 3. e4 {[%emt 0:00:08]} f6 {[%emt 0:00:08]} 4. Bd3 {[%emt 0:00:11]} Be7 {[%emt 0:00:12]} 5. Nf3 {[%emt 0:00:17]} Bd7 {[%emt 0:00:05]} 6. O-O {[%emt 0:00:28]} e5 {[%emt 0:00:06]} 7. Be3 {[%emt 0:00:08]} Nc6 {[%emt 0:00:12]} 8. h3 {[%emt 0:00:07]} a6 {[%emt 0:00:09]} 9. a3 {[%emt 0:00:05]} Bf8 {[%emt 0:00:09]} 10. Bc4 {[%emt 0:00:10]} g6 {[%emt 0:00:20]} 11. dxe5 {[%emt 0:00:06]} fxe5 {[%emt 0:00:15]} 12. Bg5 {[%emt 0:00:15]} Be7 {[%emt 0:00:01]} 13. Qd5 {[%emt 0:00:04]} Nh6 {[%emt 0:00:31]} 14. Bxh6 {[%emt 0:00:03]} Qb8 {[%emt 0:00:57]} 15. Ng5 {[%emt 0:01:03]} Bxg5 {[%emt 0:00:32]} 16. Bxg5 {[%emt 0:00:01]} Rf8 {[%emt 0:00:02]} 17. Nc3 {[%emt 0:00:16]} b5 {[%emt 0:00:01]} 18. Ba2 {[%emt 0:00:02]} Ne7 {[%emt 0:00:10]} 19. Bxe7 {[%emt 0:00:27]} Kxe7 {[%emt 0:00:01]} 20. f4 {[%emt 0:00:02]} Qb6+ {[%emt 0:00:07]} 21. Kh1 {[%emt 0:00:02]} c6 {[%emt 0:00:09]} 22. Qd3 {[%emt 0:00:07]} exf4 {[%emt 0:00:09]} 23. Rad1 {[%emt 0:00:06]} Qc7 {[%emt 0:00:15]} 24. Qd2 {[%emt 0:00:11]} g5 {[%emt 0:00:09]} 25. Rfe1 {[%emt 0:00:10]} Rae8 {[%emt 0:00:10]} 26. e5 {[%emt 0:00:05]} d5 {[%emt 0:00:08]} 27. Qd3 {[%emt 0:00:13]} Bf5 {[%emt 0:00:05]} 28. Qd4 {[%emt 0:00:03]} Kd8 {[%emt 0:00:19]} 29. Bxd5 {[%emt 0:01:03]} cxd5 {[%emt 0:00:09]} 30. Nxd5 {[%emt 0:00:03]} Qd7 {[%emt 0:03:00]} 31. Qb6+ {[%emt 0:01:59]} Kc8 {[%emt 0:00:11]} 32. Qc5+ {[%emt 0:01:59]} Kb8 {[%emt 0:00:41]} 33. Qb6+ {[%emt 0:00:40]} Qb7 {[%emt 0:00:23]} 34. Qd6+ {[%emt 0:00:14]} Ka7 {[%emt 0:00:19]} 35. Qc5+ {[%emt 0:00:31]} Kb8 {[%emt 0:00:15]} 36. Nb4 {[%emt 0:00:29]} Rc8 {[%emt 0:00:40]} 37. Qd6+ {[%emt 0:00:03]} Ka7 {[%emt 0:00:19]} 38. Qd4+ {[%emt 0:00:50]} Ka8 {[%emt 0:00:09]} 39. Nd5 {[%emt 0:00:58]} Rxc2 {[%emt 0:00:17]} 40. Nb6+ {[%emt 0:00:06]} Kb8 {[%emt 0:00:08]} 41. Qd6+ {[%emt 0:00:03]} Ka7 {[%emt 0:00:14]} 42. Nd5 {[%emt 0:00:25]} Rfc8 {[%emt 0:00:30]} 43. e6 {[%emt 0:00:15]} R2c6 {[%emt 0:00:32]} 44. Qe7 {[%emt 0:01:47]} Qxe7 45. Nxe7 Bxe6 {[%emt 0:01:07]} 46. Nxc8+ Rxc8 47. Rxe6 {[%emt 0:00:00]} Rc7 {[%emt 0:00:19]} 48. Rdd6 {[%emt 0:00:00]} h5 {[%emt 0:00:08]} 49. Rxa6+ {[%emt 0:00:00]} Kb7 {[%emt 0:00:03]} 50. Reb6+ {[%emt 0:00:00]} Kc8 {[%emt 0:00:01]} 51. Rc6 {[%emt 0:00:00]} g4 {[%emt 0:00:06]} 52. Rxc7+ {[%emt 0:00:00]} Kxc7 53. Rh6 {[%emt 0:00:00]} f3 {[%emt 0:00:03]} 54. gxf3 {[%emt 0:00:00]} gxf3 {[%emt 0:00:02]} 55. Rf6 {[%emt 0:00:00]} h4 {[%emt 0:00:16]} 56. Kg1 {[%emt 0:00:00]} 1-0

[Event "African Games Rapid Open 2019"]
[Site "Casablanca"]
[Date "2019.08.27"]
[Round "7.4"]
[White "Osunfuyi, Abimbola"]
[Black "Mwale, Joseph"]
[Result "0-1"]
[ECO "A46"]
[WhiteElo "2235"]
[BlackElo "2231"]
[Annotator "NA"]
[PlyCount "66"]
[EventDate "2019.08.26"]
[EventType "team-tourn"]
[EventCountry "MAR"]
[SourceTitle "playchess.com"]
[Source "ChessBase"]
[SourceQuality "1"]
[TimeControl "900+10"]

1. d4 {[%emt 0:00:06]} Nf6 {[%emt 0:00:00]} 2. Nf3 {[%emt 0:00:03]} e6 {[%emt 0:00:00]} 3. g3 {[%emt 0:00:03]} d5 {[%emt 0:00:00]} 4. Bg2 {[%emt 0:00:03]} Be7 {[%emt 0:00:00]} 5. O-O {[%emt 0:00:15]} O-O {[%emt 0:00:00]} 6. c4 {[%emt 0:00:09]} dxc4 {[%emt 0:00:02]} 7. Qc2 {[%emt 0:00:23]} b5 {[%emt 0:00:05]} 8. a4 {[%emt 0:00:17]} b4 {[%emt 0:00:02]} 9. Ng5 {[%emt 0:01:47]} c6 {[%emt 0:00:31]} 10. Rd1 {[%emt 0:00:23]} Ba6 {[%emt 0:02:21]} 11. e4 {[%emt 0:00:14]} h6 {[%emt 0:00:18]} 12. Nh3 {[%emt 0:00:31]} Qa5 {[%emt 0:01:47]} 13. Be3 {[%emt 0:01:41]} Nbd7 {[%emt 0:00:24]} 14. Nd2 {[%emt 0:00:19]} Nb6 {[%emt 0:00:35]} 15. Bf1 {[%emt 0:01:32]} c5 {[%emt 0:02:22]} 16. Nf3 {[%emt 0:01:36]} Bb7 {[%emt 0:00:59]} 17. Nd2 {[%emt 0:00:07]} cxd4 {[%emt 0:01:54]} 18. Bxd4 {[%emt 0:00:02]} Rac8 {[%emt 0:00:02]} 19. Bxb6 {[%emt 0:00:51]} Qxb6 {[%emt 0:00:20]} 20. Bxc4 {[%emt 0:00:40]} Ng4 {[%emt 0:02:17]} 21. b3 {[%emt 0:00:57]} Bc5 {[%emt 0:00:20]} 22. Rf1 {[%emt 0:00:45]} e5 {[%emt 0:00:23]} 23. Qd1 {[%emt 0:00:35]} Qg6 {[%emt 0:00:15]} 24. Qe2 {[%emt 0:00:36]} Rfd8 {[%emt 0:00:42]} 25. Rad1 {[%emt 0:00:17]} Rd4 {[%emt 0:00:30]} 26. Kg2 {[%emt 0:01:13]} Rcd8 {[%emt 0:00:30]} 27. Ng1 {[%emt 0:00:55]} R4d6 {[%emt 0:01:29]} 28. h3 {[%emt 0:00:43]} Nxf2 {[%emt 0:00:10]} 29. Rxf2 {[%emt 0:00:53]} Bxf2 {[%emt 0:00:01]} 30. Qxf2 {[%emt 0:01:01]} Bxe4+ {[%emt 0:00:09]} 31. Ngf3 {[%emt 0:00:25]} Bxf3+ {[%emt 0:00:05]} 32. Nxf3 {[%emt 0:00:21]} Rxd1 {[%emt 0:00:03]} 33. Nxe5 {[%emt 0:00:04]} Qe4+ {[%emt 0:00:02]} 0-1

[Event "African Games Rapid Open 2019"]
[Site "Casablanca"]
[Date "2019.08.27"]
[Round "7.5"]
[White "Hamdouchi, Hicham"]
[Black "Aderito, Pedro"]
[Result "1-0"]
[ECO "C06"]
[WhiteElo "2562"]
[BlackElo "2301"]
[Annotator "ChessBase"]
[PlyCount "81"]
[EventDate "2019.08.26"]
[EventType "team-tourn"]
[EventCountry "MAR"]
[SourceTitle "playchess.com"]
[Source "ChessBase"]
[SourceQuality "1"]
[TimeControl "900+10"]

1. e4 {[%emt 0:00:00]} e6 {[%emt 0:00:00]} 2. d4 {[%emt 0:00:05]} d5 {[%emt 0:00:00]} 3. Nd2 {[%emt 0:00:02]} Nf6 {[%emt 0:00:00]} 4. e5 {[%emt 0:00:03]} Nfd7 {[%emt 0:00:01]} 5. Bd3 {[%emt 0:00:02]} c5 {[%emt 0:00:02]} 6. c3 {[%emt 0:00:01]} Nc6 {[%emt 0:00:02]} 7. Ne2 {[%emt 0:00:01]} cxd4 {[%emt 0:00:09]} 8. cxd4 {[%emt 0:00:01]} f6 {[%emt 0:00:04]} 9. exf6 {[%emt 0:00:02]} Nxf6 {[%emt 0:00:02]} 10. Nf3 {[%emt 0:00:08]} Bd6 {[%emt 0:00:03]} 11. Bf4 {[%emt 0:00:45]} O-O {[%emt 0:00:44]} 12. O-O {[%emt 0:00:16]} a6 {[%emt 0:01:39]} 13. a3 {[%emt 0:00:14]} Ng4 {[%emt 0:00:45]} 14. Bxd6 {[%emt 0:00:24]} Qxd6 {[%emt 0:00:03]} 15. Ng3 {[%emt 0:00:05]} Qf4 {[%emt 0:00:46]} 16. h3 {[%emt 0:01:21]} Nf6 {[%emt 0:00:27]} 17. Qc1 {[%emt 0:01:14]} Ne8 {[%emt 0:00:52]} 18. Qxf4 {[%emt 0:00:47]} Rxf4 {[%emt 0:00:02]} 19. Ne2 {[%emt 0:00:02]} Rf8 {[%emt 0:01:53]} 20. Ne5 {[%emt 0:00:02]} Nxe5 {[%emt 0:00:29]} 21. dxe5 {[%emt 0:00:02]} Bd7 {[%emt 0:00:22]} 22. Rac1 {[%emt 0:00:06]} g6 {[%emt 0:00:38]} 23. f4 {[%emt 0:00:15]} Kf7 {[%emt 0:00:10]} 24. Kf2 {[%emt 0:00:28]} Ke7 {[%emt 0:00:02]} 25. Ke3 {[%emt 0:00:02]} Kd8 {[%emt 0:00:11]} 26. Nd4 {[%emt 0:00:22]} Nc7 {[%emt 0:00:27]} 27. g4 {[%emt 0:00:48]} Re8 {[%emt 0:00:56]} 28. h4 {[%emt 0:00:07]} Rc8 {[%emt 0:00:30]} 29. h5 {[%emt 0:00:02]} gxh5 {[%emt 0:00:02]} 30. gxh5 {[%emt 0:00:02]} h6 {[%emt 0:00:24]} 31. Rg1 {[%emt 0:00:02]} Rh8 {[%emt 0:00:31]} 32. Rg7 {[%emt 0:01:58]} Ne8 {[%emt 0:01:11]} 33. Rxc8+ {[%emt 0:00:03]} Kxc8 {[%emt 0:00:25]} 34. Rg6 {[%emt 0:02:00]} Nc7 {[%emt 0:00:07]} 35. f5 {[%emt 0:00:02]} Be8 {[%emt 0:01:08]} 36. f6 {[%emt 0:00:20]} Kd8 {[%emt 0:00:14]} 37. Be2 {[%emt 0:00:20]} Bf7 {[%emt 0:00:22]} 38. Rg7 {[%emt 0:01:15]} Ke8 {[%emt 0:00:35]} 39. Kf4 {[%emt 0:00:32]} Kf8 {[%emt 0:00:23]} 40. Bg4 {[%emt 0:00:19]} Ke8 {[%emt 0:01:05]} 41. Bxe6 {[%emt 0:00:57]} 1-0

[Event "African Games Rapid Open 2019"]
[Site "Casablanca"]
[Date "2019.08.27"]
[Round "7.7"]
[White "Zaibi, Amir"]
[Black "Silva, David"]
[Result "0-1"]
[ECO "C28"]
[WhiteElo "2367"]
[BlackElo "2239"]
[Annotator "NA"]
[PlyCount "84"]
[EventDate "2019.08.26"]
[EventType "team-tourn"]
[EventCountry "MAR"]
[SourceTitle "playchess.com"]
[Source "ChessBase"]
[SourceQuality "1"]
[TimeControl "900+10"]

1. e4 {[%emt 0:00:00]} e5 {[%emt 0:00:00]} 2. Bc4 {[%emt 0:00:00]} Nc6 {[%emt 0:00:02]} 3. Nc3 {[%emt 0:00:00]} Nf6 {[%emt 0:00:01]} 4. d3 {[%emt 0:00:02]} Bc5 {[%emt 0:00:08]} 5. f4 {[%emt 0:00:04]} d6 {[%emt 0:00:11]} 6. Nf3 {[%emt 0:00:01]} Na5 {[%emt 0:00:43]} 7. f5 {[%emt 0:02:20]} c6 {[%emt 0:01:40]} 8. Qe2 {[%emt 0:01:38]} O-O {[%emt 0:00:30]} 9. Bb3 {[%emt 0:00:23]} d5 {[%emt 0:03:42]} 10. Bg5 {[%emt 0:00:09]} d4 {[%emt 0:00:12]} 11. Nb1 {[%emt 0:00:59]} Nxb3 {[%emt 0:00:21]} 12. axb3 {[%emt 0:00:02]} Be7 {[%emt 0:00:02]} 13. Bxf6 {[%emt 0:00:33]} Bxf6 {[%emt 0:00:04]} 14. h4 {[%emt 0:00:02]} Re8 {[%emt 0:02:51]} 15. g4 {[%emt 0:00:22]} Be7 {[%emt 0:00:01]} 16. Nbd2 {[%emt 0:00:07]} Bf8 {[%emt 0:00:10]} 17. Kf2 {[%emt 0:00:27]} a5 {[%emt 0:00:18]} 18. Nf1 {[%emt 0:01:07]} b5 {[%emt 0:00:03]} 19. Ng3 {[%emt 0:00:10]} c5 {[%emt 0:00:01]} 20. g5 {[%emt 0:00:25]} Ra6 {[%emt 0:00:01]} 21. Rag1 {[%emt 0:00:47]} a4 {[%emt 0:00:01]} 22. h5 {[%emt 0:00:18]} c4 {[%emt 0:00:06]} 23. f6 {[%emt 0:02:25]} axb3 {[%emt 0:00:14]} 24. fxg7 {[%emt 0:00:26]} Bxg7 {[%emt 0:00:01]} 25. h6 {[%emt 0:01:00]} Bh8 {[%emt 0:00:19]} 26. Nh5 {[%emt 0:00:26]} Kf8 {[%emt 0:00:01]} 27. cxb3 {[%emt 0:00:51]} c3 {[%emt 0:00:10]} 28. bxc3 {[%emt 0:01:01]} dxc3 {[%emt 0:00:01]} 29. Qe3 {[%emt 0:01:24]} Qb6 {[%emt 0:02:32]} 30. Qxb6 {[%emt 0:00:27]} Rxb6 {[%emt 0:00:02]} 31. b4 {[%emt 0:00:00]} Rd6 {[%emt 0:00:22]} 32. Ke3 {[%emt 0:00:11]} Red8 {[%emt 0:00:03]} 33. Rd1 {[%emt 0:00:02]} Bg4 {[%emt 0:00:09]} 34. Ng3 {[%emt 0:00:23]} c2 {[%emt 0:00:05]} 35. Rd2 {[%emt 0:00:03]} Bxf3 {[%emt 0:00:02]} 36. Kxf3 {[%emt 0:00:01]} Rxd3+ {[%emt 0:00:06]} 37. Rxd3 {[%emt 0:00:57]} Rxd3+ {[%emt 0:00:03]} 38. Kg2 {[%emt 0:00:23]} Rd2+ {[%emt 0:00:28]} 39. Ne2 {[%emt 0:00:43]} Rxe2+ {[%emt 0:00:07]} 40. Kf3 {[%emt 0:00:01]} Rd2 {[%emt 0:00:05]} 41. Rc1 {[%emt 0:00:09]} f6 {[%emt 0:00:20]} 42. Ke3 {[%emt 0:00:02]} Rh2 {[%emt 0:00:04]} 0-1

[Event "African Games Rapid Open 2019"]
[Site "Casablanca"]
[Date "2019.08.27"]
[Round "7.8"]
[White "Makoto, Rodwell"]
[Black "Elarabi, Abobker Mohamed"]
[Result "1-0"]
[ECO "A06"]
[WhiteElo "2373"]
[BlackElo "2326"]
[Annotator "NA"]
[PlyCount "98"]
[EventDate "2019.08.26"]
[EventType "team-tourn"]
[EventCountry "MAR"]
[SourceTitle "playchess.com"]
[Source "ChessBase"]
[SourceQuality "1"]
[TimeControl "900+10"]

1. Nf3 {[%emt 0:00:00]} d5 {[%emt 0:00:00]} 2. c4 {[%emt 0:00:00]} c6 {[%emt 0:00:00]} 3. g3 {[%emt 0:00:00]} Nf6 {[%emt 0:00:00]} 4. Bg2 {[%emt 0:00:00]} g6 {[%emt 0:00:33]} 5. b3 {[%emt 0:00:00]} Bg7 {[%emt 0:00:01]} 6. Bb2 {[%emt 0:00:00]} O-O {[%emt 0:00:02]} 7. O-O {[%emt 0:00:00]} e6 {[%emt 0:00:09]} 8. d3 {[%emt 0:00:00]} Nbd7 {[%emt 0:00:01]} 9. Nbd2 {[%emt 0:00:01]} b6 {[%emt 0:00:00]} 10. e4 {[%emt 0:00:08]} Bb7 {[%emt 0:00:12]} 11. Qe2 {[%emt 0:00:49]} Re8 {[%emt 0:01:12]} 12. Rac1 {[%emt 0:00:33]} Rc8 {[%emt 0:00:02]} 13. Rfd1 {[%emt 0:00:23]} dxc4 {[%emt 0:00:08]} 14. Nxc4 {[%emt 0:00:21]} Qc7 {[%emt 0:02:41]} 15. e5 {[%emt 0:00:23]} Nd5 {[%emt 0:00:33]} 16. Nd6 {[%emt 0:00:10]} Red8 {[%emt 0:00:24]} 17. Nxc8 {[%emt 0:00:15]} Qxc8 {[%emt 0:00:19]} 18. Nd2 {[%emt 0:00:23]} Qb8 {[%emt 0:00:20]} 19. d4 {[%emt 0:00:19]} c5 {[%emt 0:00:17]} 20. Nc4 {[%emt 0:00:34]} cxd4 {[%emt 0:00:11]} 21. Bxd4 {[%emt 0:00:04]} Qa8 {[%emt 0:01:23]} 22. Qe1 {[%emt 0:03:46]} Bf8 {[%emt 0:00:08]} 23. Nd6 {[%emt 0:00:21]} Qb8 {[%emt 0:00:22]} 24. Nxb7 {[%emt 0:00:03]} Qxb7 {[%emt 0:00:02]} 25. Bxd5 {[%emt 0:00:27]} exd5 {[%emt 0:01:00]} 26. e6 {[%emt 0:00:03]} Re8 {[%emt 0:00:11]} 27. exf7+ {[%emt 0:00:02]} Kxf7 {[%emt 0:00:02]} 28. Qc3 {[%emt 0:00:10]} Bc5 {[%emt 0:03:23]} 29. Qf3+ {[%emt 0:00:06]} Kg8 {[%emt 0:00:03]} 30. Bxc5 {[%emt 0:00:35]} Nxc5 {[%emt 0:00:06]} 31. Qxd5+ {[%emt 0:00:15]} Qxd5 {[%emt 0:00:02]} 32. Rxd5 {[%emt 0:00:01]} Re7 {[%emt 0:02:01]} 33. b4 {[%emt 0:00:03]} Na6 {[%emt 0:00:15]} 34. a3 {[%emt 0:00:16]} Nc7 {[%emt 0:00:19]} 35. Rd8+ {[%emt 0:00:10]} Kf7 {[%emt 0:00:28]} 36. Rcd1 {[%emt 0:00:05]} Nb5 {[%emt 0:00:04]} 37. R1d3 {[%emt 0:00:33]} h5 {[%emt 0:01:27]} 38. a4 {[%emt 0:00:23]} Nc7 {[%emt 0:00:05]} 39. R8d7 {[%emt 0:00:09]} Na6 {[%emt 0:00:02]} 40. Rxe7+ {[%emt 0:00:11]} Kxe7 {[%emt 0:00:01]} 41. Rd4 {[%emt 0:00:04]} Ke6 {[%emt 0:00:12]} 42. f4 {[%emt 0:00:08]} Nc7 {[%emt 0:00:07]} 43. Kf2 {[%emt 0:00:15]} Nd5 {[%emt 0:00:22]} 44. Kf3 {[%emt 0:00:09]} Nc3 {[%emt 0:00:56]} 45. a5 {[%emt 0:00:11]} bxa5 {[%emt 0:00:03]} 46. bxa5 {[%emt 0:00:01]} Nb5 {[%emt 0:00:16]} 47. Re4+ {[%emt 0:00:08]} Kf6 {[%emt 0:00:23]} 48. Rc4 {[%emt 0:00:04]} Ke6 {[%emt 0:00:11]} 49. Rc8 {[%emt 0:00:30]} Kd5 {Ke4+} 1-0

[Event "African Games Rapid Open 2019"]
[Site "Casablanca"]
[Date "2019.08.27"]
[Round "7.9"]
[White "Khetho, Phemelo"]
[Black "Tissir, Mohamed"]
[Result "1/2-1/2"]
[ECO "B06"]
[WhiteElo "2178"]
[BlackElo "2379"]
[Annotator "NA"]
[PlyCount "97"]
[EventDate "2019.08.26"]
[EventType "team-tourn"]
[EventCountry "MAR"]
[SourceTitle "playchess.com"]
[Source "ChessBase"]
[SourceQuality "1"]
[TimeControl "900+10"]

1. e4 {[%emt 0:00:00]} d6 {[%emt 0:00:00]} 2. d4 {[%emt 0:00:00]} g6 {[%emt 0:00:00]} 3. Nc3 {[%emt 0:00:00]} Bg7 {[%emt 0:00:00]} 4. Nf3 {[%emt 0:00:04]} Nd7 {[%emt 0:00:00]} 5. Be2 {[%emt 0:00:13]} e5 {[%emt 0:00:32]} 6. Be3 {[%emt 0:00:07]} Ngf6 {[%emt 0:00:06]} 7. h3 {[%emt 0:00:03]} O-O {[%emt 0:00:04]} 8. Qd2 {[%emt 0:00:03]} exd4 {[%emt 0:00:06]} 9. Nxd4 {[%emt 0:00:08]} Re8 {[%emt 0:00:31]} 10. f3 {[%emt 0:00:25]} d5 {[%emt 0:00:18]} 11. exd5 {[%emt 0:00:30]} Nb6 {[%emt 0:00:15]} 12. O-O-O {[%emt 0:00:31]} Nbxd5 {[%emt 0:00:04]} 13. Nxd5 {[%emt 0:03:07]} Nxd5 {[%emt 0:00:39]} 14. Nb3 {[%emt 0:00:09]} Qe7 {[%emt 0:01:58]} 15. Bg5 {[%emt 0:00:51]} Qxe2 {[%emt 0:00:53]} 16. Qxe2 {[%emt 0:00:06]} Rxe2 {[%emt 0:00:01]} 17. Rxd5 {[%emt 0:00:03]} Be6 {[%emt 0:00:16]} 18. Rd2 {[%emt 0:00:02]} Rxd2 {[%emt 0:00:07]} 19. Bxd2 {[%emt 0:00:01]} b6 {[%emt 0:00:10]} 20. Bc3 {[%emt 0:00:31]} Rd8 {[%emt 0:00:43]} 21. Bxg7 {[%emt 0:00:10]} Kxg7 {[%emt 0:00:01]} 22. Nd2 {[%emt 0:00:14]} f5 {[%emt 0:00:14]} 23. Re1 Kf6 24. b3 {[%emt 0:00:21]} Rd7 {[%emt 0:00:53]} 25. c4 {[%emt 0:00:50]} Bf7 {[%emt 0:00:33]} 26. Kc2 {[%emt 0:00:14]} g5 {[%emt 0:02:15]} 27. g3 {[%emt 0:00:44]} Bg6 {[%emt 0:01:00]} 28. f4 {[%emt 0:00:31]} gxf4 {[%emt 0:00:03]} 29. gxf4 Bh5 30. Kc3 {[%emt 0:00:19]} Rg7 {[%emt 0:00:19]} 31. Re3 {[%emt 0:00:40]} Rg2 {[%emt 0:00:02]} 32. Rd3 {[%emt 0:00:27]} Rh2 {[%emt 0:02:07]} 33. a3 {[%emt 0:00:11]} Be2 {[%emt 0:00:10]} 34. Re3 {[%emt 0:00:13]} h5 {[%emt 0:00:28]} 35. b4 {[%emt 0:00:14]} h4 {[%emt 0:00:05]} 36. c5 {[%emt 0:00:22]} Rg2 {[%emt 0:00:29]} 37. Nb3 {[%emt 0:00:13]} Bf1 {[%emt 0:00:15]} 38. Nd4 {[%emt 0:00:53]} Rg3 {[%emt 0:00:06]} 39. Kd2 {[%emt 0:00:02]} Rxh3 {[%emt 0:01:10]} 40. Rxh3 {[%emt 0:00:33]} Bxh3 {[%emt 0:00:01]} 41. Nf3 {[%emt 0:00:01]} Bg2 {[%emt 0:00:09]} 42. Nxh4 {[%emt 0:00:02]} Be4 {[%emt 0:00:03]} 43. Ke3 {[%emt 0:00:07]} bxc5 {[%emt 0:00:39]} 44. bxc5 {[%emt 0:00:01]} a5 {[%emt 0:00:08]} 45. Kd4 {[%emt 0:00:07]} a4 {[%emt 0:04:25]} 46. Kc4 {[%emt 0:00:06]} Bc6 {[%emt 0:00:09]} 47. Kd4 {[%emt 0:00:02]} Be4 {[%emt 0:00:02]} 48. Kc4 {[%emt 0:00:01]} Bc6 {[%emt 0:00:00]} 49. Kd4 {[%emt 0:00:01] Ke5+} 1/2-1/2